fUSD/lending_fUSD_20250617
["ID","MTS","AMOUNT","RATE_DAILY","PERIOD"]
[366301947,1750179090987,-525.46080799,0.00016767,2]
[366301948,1750179090997,-490.0,0.00016767,2]
[366301949,1750179091007,-490.0,0.00016767,2]
[366301950,1750179091017,-728.2,0.00016767,2]
[366301951,1750179091026,-490.0,0.00016767,2]
[366301952,1750179091036,-490.0,0.00016767,2]
[366301953,1750179091046,-765.39,0.00016767,2]
[366301954,1750179091057,-943.38,0.00016767,2]
[366301955,1750179091067,-1981.54,0.00016767,2]
[366301956,1750179091078,-490.0,0.00016767,2]
[366301957,1750179091087,-490.0,0.00016767,2]
[366301958,1750179091097,-490.0,0.00016767,2]
[366301959,1750179091107,-490.0,0.00016767,2]
[366301960,1750179091116,-490.0,0.00016767,2]
[366301961,1750179091125,-198.45492608,0.00016767,2]
[366301962,1750179091135,-490.0,0.00016767,2]
[366301963,1750179091144,-490.0,0.00016767,2]
[366301964,1750179091154,-490.0,0.00016767,2]
[366301965,1750179091164,-490.0,0.00016767,2]
[366301966,1750179091174,-536.83,0.00016767,2]
[366301967,1750179091184,-490.0,0.00016767,2]
[366301968,1750179091194,-490.0,0.00016767,2]
[366301969,1750179091204,-490.0,0.00016767,2]
[366301970,1750179091215,-757.58,0.00016767,2]
[366301971,1750179091231,-490.0,0.00016767,2]
[366301972,1750179091241,-1517.82,0.00016767,2]
[366301973,1750179091252,-929.75,0.00016767,2]
[366301974,1750179091263,-490.0,0.00016767,2]
[366301975,1750179091274,-490.0,0.00016767,2]
[366301976,1750179091285,-1098.3,0.00016767,2]
[366301977,1750179091296,-535.07,0.00016767,2]
[366301978,1750179091306,-490.0,0.00016767,2]
[366301979,1750179091316,-919.04,0.00016767,2]
[366301980,1750179091327,-490.0,0.00016767,2]
[366301981,1750179091337,-2813.8,0.00016767,2]
[366301982,1750179091348,-490.0,0.00016767,2]
[366301983,1750179091358,-490.0,0.00016767,2]
[366301984,1750179091369,-1534.13,0.00016767,2]
[366301985,1750179091379,-750.25,0.00016767,2]
[366301986,1750179091390,-490.0,0.00016767,2]
[366301987,1750179091400,-490.0,0.00016767,2]
[366301988,1750179091410,-606.7,0.00016767,2]
[366301989,1750179091420,-490.0,0.00016767,2]
[366301990,1750179091430,-661.25,0.00016767,2]
[366301991,1750179091440,-490.0,0.00016767,2]
[366301992,1750179091450,-490.0,0.00016767,2]
[366301993,1750179091460,-858.7,0.00016767,2]
[366301994,1750179091475,-490.0,0.00016767,2]
[366301995,1750179091486,-490.0,0.00016767,2]
[366301996,1750179091502,-485.82687536,0.00016767,2]
[366301997,1750179091512,-490.0,0.00016767,2]
[366301998,1750179091522,-490.0,0.00016767,2]
[366301999,1750179091532,-777.91,0.00016767,2]
[366302000,1750179091543,-490.0,0.00016767,2]
[366302001,1750179091553,-490.0,0.00016767,2]
[366302002,1750179091564,-490.0,0.00016767,2]
[366302003,1750179091574,-490.0,0.00016767,2]
[366302004,1750179091586,-490.0,0.00016767,2]
[366302005,1750179091596,-1350.18,0.00016767,2]
[366302006,1750179091605,-490.0,0.00016767,2]
[366302007,1750179091616,-1882.71,0.00016767,2]
[366302008,1750179091626,-490.0,0.00016767,2]
[366302009,1750179091636,-490.0,0.00016767,2]
[366302010,1750179091646,-490.0,0.00016767,2]
[366302011,1750179091656,-514.84,0.00016767,2]
[366302012,1750179091666,-490.0,0.00016767,2]
[366302013,1750179091676,-490.0,0.00016767,2]
[366302014,1750179091686,-490.0,0.00016767,2]
[366302015,1750179091696,-1424.18,0.00016767,2]
[366302016,1750179091706,-490.0,0.00016767,2]
[366302017,1750179091716,-1921.85,0.00016767,2]
[366302018,1750179091730,-490.0,0.00016767,2]
[366302019,1750179091741,-165.47308473,0.00016767,2]
[366302020,1750179091751,-1238.17,0.00016767,2]
[366302021,1750179091761,-490.0,0.00016767,2]
[366302022,1750179091771,-490.0,0.00016767,2]
[366302023,1750179091780,-490.0,0.00016767,2]
[366302024,1750179091790,-490.0,0.00016767,2]
[366302025,1750179091800,-490.0,0.00016767,2]
[366302026,1750179091810,-1456.63,0.00016767,2]
[366302027,1750179091821,-490.0,0.00016767,2]
[366302028,1750179091832,-490.0,0.00016767,2]
[366302029,1750179091843,-490.0,0.00016767,2]
[366302030,1750179091855,-490.0,0.00016767,2]
[366302031,1750179091866,-490.0,0.00016767,2]
[366302032,1750179091876,-490.0,0.00016767,2]
[366302033,1750179091886,-1305.87,0.00016767,2]
[366302034,1750179091897,-490.0,0.00016767,2]
[366302035,1750179091908,-490.0,0.00016767,2]
[366302036,1750179091918,-490.0,0.00016767,2]
[366302037,1750179091928,-1296.45,0.00016767,2]
[366302038,1750179091938,-490.0,0.00016767,2]
[366302039,1750179091948,-490.0,0.00016767,2]
[366302040,1750179091958,-490.0,0.00016767,2]
[366302041,1750179091971,-490.0,0.00016767,2]
[366302042,1750179091982,-490.0,0.00016767,2]
[366302043,1750179091992,-490.0,0.00016767,2]
[366302044,1750179092002,-490.0,0.00016767,2]
[366302045,1750179092012,-773.38,0.00016767,2]
[366302046,1750179092023,-1555.23,0.00016767,2]
[366302047,1750179092033,-490.0,0.00016767,2]
[366302048,1750179092043,-490.0,0.00016767,2]
[366302049,1750179092053,-490.0,0.00016767,2]
[366302050,1750179092063,-1009.27,0.00016767,2]
[366302051,1750179092074,-490.0,0.00016767,2]
[366302052,1750179092084,-622.85,0.00016767,2]
[366302053,1750179092095,-490.0,0.00016767,2]
[366302054,1750179092106,-321.898445,0.00016767,2]
[366302055,1750179092116,-490.0,0.00016767,2]
[366302056,1750179092126,-490.0,0.00016767,2]
[366302057,1750179092136,-490.0,0.00016767,2]
[366302058,1750179092147,-490.0,0.00016767,2]
[366302059,1750179092157,-333.277908,0.00016767,2]
[366302060,1750179092167,-1195.5,0.00016767,2]
[366302061,1750179092177,-942.43,0.00016767,2]
[366302062,1750179092188,-490.0,0.00016767,2]
[366302063,1750179092198,-541.3,0.00016767,2]
[366302064,1750179092208,-321.898447,0.00016767,2]
[366302065,1750179092223,-333.277899,0.00016767,2]
[366302066,1750179092234,-490.0,0.00016767,2]
[366302067,1750179092244,-490.0,0.00016767,2]
[366302068,1750179092254,-490.0,0.00016767,2]
[366302069,1750179092264,-490.0,0.00016767,2]
[366302070,1750179092275,-490.0,0.00016767,2]
[366302071,1750179092285,-490.0,0.00016767,2]
[366302072,1750179092295,-491.72,0.00016767,2]
[366302073,1750179092305,-490.0,0.00016767,2]
[366302074,1750179092315,-490.0,0.00016767,2]
[366302075,1750179092326,-490.0,0.00016767,2]
[366302076,1750179092336,-490.0,0.00016767,2]
[366302077,1750179092347,-490.0,0.00016767,2]
[366302078,1750179092358,-490.0,0.00016767,2]
[366302079,1750179092368,-1870.077137,0.00016767,2]
[366302080,1750179092378,-490.0,0.00016767,2]
[366302081,1750179092388,-490.0,0.00016767,2]
[366302082,1750179092398,-490.0,0.00016767,2]
[366302083,1750179092408,-1870.077134,0.00016767,2]
[366302084,1750179092418,-550.5,0.00016767,2]
[366302085,1750179092434,-490.0,0.00016767,2]
[366302086,1750179092447,-490.0,0.00016767,2]
[366302087,1750179092457,-1354.860897,0.00016767,2]
[366302088,1750179092467,-1354.860897,0.00016767,2]
[366302089,1750179092480,-1354.860897,0.00016767,2]
[366302090,1750179092490,-490.0,0.00016767,2]
[366302091,1750179092501,-490.0,0.00016767,2]
[366302092,1750179092513,-377.75890651,0.00016767,2]
[366302093,1750179092523,-1543.82,0.00016767,2]
[366302094,1750179092534,-2930.03,0.00016767,2]
[366302095,1750179092545,-590.0,0.00016767,2]
[366302096,1750179092559,-490.22456289,0.00016767,2]
[366302097,1750179092603,-519.8,0.00016767,2]
[366302098,1750179092615,-1948.99543711,0.00016767,2]
[366302099,1750179092625,-1755.0,0.00016767,2]
[366302100,1750179092635,-223.36984006,0.00016767,2]
[366302101,1750179092648,-266.63015994,0.00016767,2]
[366302102,1750179092658,-490.0,0.00016767,2]
[366302103,1750179092670,-721.31,0.00016767,2]
[366302104,1750179092680,-697.97951719,0.00016767,2]
[366302105,1750179092692,-521.54290571,0.00016767,2]
[366302106,1750179092704,-135.3384741,0.00016767,2]
[366302107,1750179092715,-1354.860897,0.00016767,2]
[366302108,1750179092727,-141.70319562,0.00016767,2]
[366302109,1750179092739,-1213.15770157,0.00016767,2]
[366302110,1750179092750,-692.52,0.00016767,2]
[366302111,1750179092760,-388.77174103,0.00016767,2]
[366302112,1750179093132,-151.0,0.00016438,2]
[366302113,1750179093142,-490.0,0.00016438,2]
[366302114,1750179093153,-490.0,0.00016438,2]
[366302115,1750179093163,-490.0,0.00016438,2]
[366302116,1750179093174,-5086.97,0.00016602,2]
[366302117,1750179093185,-151.0,0.00016602,2]
[366302118,1750179093195,-490.0,0.00016602,2]
[366302119,1750179093205,-151.0,0.00016602,2]
[366302120,1750179093217,-547.22531985,0.00016602,2]
[366302121,1750179093228,-151.0,0.00016602,2]
[366302122,1750179093239,-101.22825897,0.00016767,2]
[366302123,1750179093249,-490.0,0.00016767,2]
[366302124,1750179093259,-688.18,0.00016767,2]
[366302125,1750179093270,-490.0,0.00016767,2]
[366302126,1750179093281,-17226.18,0.00016767,2]
[366302127,1750179093293,-490.0,0.00016767,2]
[366302128,1750179093303,-703.38,0.00016767,2]
[366302129,1750179093315,-600.91,0.00016767,2]
[366302130,1750179093326,-490.0,0.00016767,2]
[366302131,1750179093337,-490.0,0.00016767,2]
[366302132,1750179093347,-336.77,0.00016767,2]
[366302133,1750179093358,-187.4281803,0.00016767,2]
[366302134,1750179093369,-772.8,0.00016767,2]
[366302135,1750179093380,-735.55,0.00016767,2]
[366302136,1750179093390,-490.0,0.00016767,2]
[366302137,1750179093400,-490.0,0.00016767,2]
[366302138,1750179093410,-625.18,0.00016767,2]
[366302139,1750179093421,-490.0,0.00016767,2]
[366302140,1750179093431,-624.1,0.00016767,2]
[366302141,1750179093442,-490.0,0.00016767,2]
[366302142,1750179093453,-490.0,0.00016767,2]
[366302143,1750179093464,-490.0,0.00016767,2]
[366302144,1750179093476,-6819.07,0.00016767,2]
[366302145,1750179093487,-490.0,0.00016767,2]
[366302146,1750179093499,-728.92,0.00016767,2]
[366302147,1750179093514,-2580.28,0.00016767,2]
[366302148,1750179093525,-490.0,0.00016767,2]
[366302149,1750179093536,-490.0,0.00016767,2]
[366302150,1750179093549,-490.0,0.00016767,2]
[366302151,1750179093560,-490.0,0.00016767,2]
[366302152,1750179093571,-490.0,0.00016767,2]
[366302153,1750179093583,-490.0,0.00016767,2]
[366302154,1750179093594,-490.0,0.00016767,2]
[366302155,1750179093605,-1322.18,0.00016767,2]
[366302156,1750179093616,-490.0,0.00016767,2]
[366302157,1750179093628,-1295.36,0.00016767,2]
[366302158,1750179093639,-490.0,0.00016767,2]
[366302159,1750179093650,-490.0,0.00016767,2]
[366302160,1750179093662,-490.0,0.00016767,2]
[366302161,1750179093674,-4908.75,0.00016767,2]
[366302162,1750179093685,-1020.81,0.00016767,2]
[366302163,1750179093697,-1194.29,0.00016767,2]
[366302164,1750179093710,-492.68608306,0.00016767,2]
[366302165,1750179093731,-377.16693642,0.00016767,2]
[366302166,1750179093743,-490.0,0.00016767,2]
[366302167,1750179093755,-679.08,0.00016767,2]
[366302168,1750179093767,-490.0,0.00016767,2]
[366302169,1750179093779,-490.0,0.00016767,2]
[366302170,1750179093790,-794.34,0.00016767,2]
[366302171,1750179093802,-490.0,0.00016767,2]
[366302172,1750179093813,-3775.65,0.00016767,2]
[366302173,1750179093824,-1579.59,0.00016767,2]
[366302174,1750179093835,-493.25456761,0.00016767,2]
[366302175,1750179093847,-490.0,0.00016767,2]
[366302176,1750179093858,-499.56,0.00016767,2]
[366302177,1750179093869,-490.0,0.00016767,2]
[366302178,1750179093881,-810.59,0.00016767,2]
[366302179,1750179093892,-490.0,0.00016767,2]
[366302180,1750179093903,-2116.89,0.00016767,2]
[366302181,1750179093914,-490.0,0.00016767,2]
[366302182,1750179093926,-490.0,0.00016767,2]
[366302183,1750179093937,-490.0,0.00016767,2]
[366302184,1750179093947,-1477.68,0.00016767,2]
[366302185,1750179093958,-490.0,0.00016767,2]
[366302186,1750179093971,-625.06,0.00016767,2]
[366302187,1750179093982,-1252.14,0.00016767,2]
[366302188,1750179093996,-539.88,0.00016767,2]
[366302189,1750179094008,-3767.06,0.00016767,2]
[366302190,1750179094018,-1276.78,0.00016767,2]
[366302191,1750179094029,-1003.04,0.00016767,2]
[366302192,1750179094041,-490.0,0.00016767,2]
[366302193,1750179094052,-490.0,0.00016767,2]
[366302194,1750179094063,-490.0,0.00016767,2]
[366302195,1750179094074,-2037.45,0.00016767,2]
[366302196,1750179094084,-490.0,0.00016767,2]
[366302197,1750179094094,-862.08,0.00016767,2]
[366302198,1750179094105,-786.22,0.00016767,2]
[366302199,1750179094117,-3293.24,0.00016767,2]
[366302200,1750179094127,-860.38,0.00016767,2]
[366302201,1750179094138,-490.0,0.00016767,2]
[366302202,1750179094148,-933.44,0.00016767,2]
[366302203,1750179094160,-1943.87,0.00016767,2]
[366302204,1750179094170,-1763.65,0.00016767,2]
[366302205,1750179094182,-1006.28,0.00016767,2]
[366302206,1750179094193,-621.92,0.00016767,2]
[366302207,1750179094204,-490.0,0.00016767,2]
[366302208,1750179094215,-16188.56,0.00016767,2]
[366302209,1750179094227,-490.0,0.00016767,2]
[366302210,1750179094238,-490.0,0.00016767,2]
[366302211,1750179094249,-151.0,0.00016767,2]
[366302212,1750179094261,-2258.57,0.00016767,2]
[366302213,1750179094272,-20209.94,0.00016767,2]
[366302214,1750179094283,-509.66,0.00016767,2]
[366302215,1750179094294,-490.0,0.00016767,2]
[366302216,1750179094306,-1318.58,0.00016767,2]
[366302217,1750179094317,-857.76,0.00016767,2]
[366302218,1750179094329,-606.99,0.00016767,2]
[366302219,1750179094339,-490.0,0.00016767,2]
[366302220,1750179094350,-490.0,0.00016767,2]
[366302221,1750179094360,-490.63,0.00016767,2]
[366302222,1750179094371,-151.0,0.00016767,2]
[366302223,1750179094381,-1055.34,0.00016767,2]
[366302224,1750179094392,-244.926484,0.00016767,2]
[366302225,1750179094403,-1545.83,0.00016767,2]
[366302226,1750179094413,-490.0,0.00016767,2]
[366302227,1750179094424,-490.0,0.00016767,2]
[366302228,1750179094434,-490.0,0.00016767,2]
[366302229,1750179094444,-2099.82,0.00016767,2]
[366302230,1750179094454,-555.94,0.00016767,2]
[366302231,1750179094465,-1128.97,0.00016767,2]
[366302232,1750179094477,-1128.13,0.00016767,2]
[366302233,1750179094487,-687.36,0.00016767,2]
[366302234,1750179094500,-798.34,0.00016767,2]
[366302235,1750179094510,-490.0,0.00016767,2]
[366302236,1750179094521,-3699.17,0.00016767,2]
[366302237,1750179094531,-490.0,0.00016767,2]
[366302238,1750179094542,-490.0,0.00016767,2]
[366302239,1750179094553,-1296.33,0.00016767,2]
[366302240,1750179094564,-3829.8,0.00016767,2]
[366302241,1750179094576,-584.01,0.00016767,2]
[366302242,1750179094587,-2163.52,0.00016767,2]
[366302243,1750179094598,-1288.51,0.00016767,2]
[366302244,1750179094609,-490.0,0.00016767,2]
[366302245,1750179094619,-490.0,0.00016767,2]
[366302246,1750179094630,-722.0,0.00016767,2]
[366302247,1750179094640,-490.0,0.00016767,2]
[366302248,1750179094650,-490.0,0.00016767,2]
[366302249,1750179094662,-490.0,0.00016767,2]
[366302250,1750179094674,-490.0,0.00016767,2]
[366302251,1750179094685,-2148.54,0.00016767,2]
[366302252,1750179094696,-3204.05,0.00016767,2]
[366302253,1750179094707,-490.0,0.00016767,2]
[366302254,1750179094718,-2390.88,0.00016767,2]
[366302255,1750179094731,-9744.48,0.00016767,2]
[366302256,1750179094742,-490.0,0.00016767,2]
[366302257,1750179094753,-1932.87,0.00016767,2]
[366302258,1750179095059,-490.0,0.00016767,2]
[366302259,1750179095075,-490.0,0.00016767,2]
[366302260,1750179095085,-26849.5,0.00016767,2]
[366302261,1750179095095,-490.0,0.00016767,2]
[366302262,1750179095105,-490.0,0.00016767,2]
[366302263,1750179095116,-820.05,0.00016767,2]
[366302264,1750179095126,-490.0,0.00016767,2]
[366302265,1750179095136,-490.0,0.00016767,2]
[366302266,1750179095145,-2774.47,0.00016767,2]
[366302267,1750179095156,-490.0,0.00016767,2]
[366302268,1750179095166,-490.0,0.00016767,2]
[366302269,1750179095177,-490.0,0.00016767,2]
[366302270,1750179095187,-1469.34,0.00016767,2]
[366302271,1750179095197,-1174.52,0.00016767,2]
[366302272,1750179095207,-490.0,0.00016767,2]
[366302273,1750179095217,-504.82,0.00016767,2]
[366302274,1750179095229,-543.32395637,0.00016767,2]
[366302275,1750179095239,-490.0,0.00016767,2]
[366302276,1750179095249,-1521.85,0.00016767,2]
[366302277,1750179095259,-719.86,0.00016767,2]
[366302278,1750179095269,-490.0,0.00016767,2]
[366302279,1750179095280,-490.0,0.00016767,2]
[366302280,1750179095290,-3292.56,0.00016767,2]
[366302281,1750179095300,-490.0,0.00016767,2]
[366302282,1750179095310,-490.0,0.00016767,2]
[366302283,1750179095320,-324.0,0.00016767,2]
[366302284,1750179095330,-490.0,0.00016767,2]
[366302285,1750179095340,-1176.87,0.00016767,2]
[366302286,1750179095350,-490.0,0.00016767,2]
[366302287,1750179095360,-490.0,0.00016767,2]
[366302288,1750179095370,-1249.62,0.00016767,2]
[366302289,1750179095381,-2167.87,0.00016767,2]
[366302290,1750179095391,-490.0,0.00016767,2]
[366302291,1750179095400,-490.0,0.00016767,2]
[366302292,1750179095410,-3751.94,0.00016767,2]
[366302293,1750179095421,-490.0,0.00016767,2]
[366302294,1750179095433,-4943.53,0.00016767,2]
[366302295,1750179095443,-490.0,0.00016767,2]
[366302296,1750179095454,-2268.42,0.00016767,2]
[366302297,1750179095465,-490.0,0.00016767,2]
[366302298,1750179095477,-490.0,0.00016767,2]
[366302299,1750179095487,-2213.64,0.00016767,2]
[366302300,1750179095498,-693.17,0.00016767,2]
[366302301,1750179095510,-911.15,0.00016767,2]
[366302302,1750179095521,-858.38,0.00016767,2]
[366302303,1750179095531,-1527.5,0.00016767,2]
[366302304,1750179095541,-490.0,0.00016767,2]
[366302305,1750179095553,-2502.33,0.00016767,2]
[366302306,1750179095563,-2894.68,0.00016767,2]
[366302307,1750179095573,-1748.33,0.00016767,2]
[366302308,1750179095586,-490.0,0.00016767,2]
[366302309,1750179095597,-490.0,0.00016767,2]
[366302310,1750179095607,-490.0,0.00016767,2]
[366302311,1750179095617,-943.35,0.00016767,2]
[366302312,1750179095627,-629.69,0.00016767,2]
[366302313,1750179095637,-490.0,0.00016767,2]
[366302314,1750179095647,-615.49,0.00016767,2]
[366302315,1750179095658,-490.0,0.00016767,2]
[366302316,1750179095668,-490.0,0.00016767,2]
[366302317,1750179095677,-6512.92,0.00016767,2]
[366302318,1750179095687,-490.0,0.00016767,2]
[366302319,1750179095697,-490.0,0.00016767,2]
[366302320,1750179095707,-1753.92,0.00016767,2]
[366302321,1750179095717,-6663.51,0.00016767,2]
[366302322,1750179095729,-490.0,0.00016767,2]
[366302323,1750179095739,-490.0,0.00016767,2]
[366302324,1750179095748,-490.0,0.00016767,2]
[366302325,1750179095758,-490.0,0.00016767,2]
[366302326,1750179095769,-490.0,0.00016767,2]
[366302327,1750179095779,-1568.75,0.00016767,2]
[366302328,1750179095790,-490.0,0.00016767,2]
[366302329,1750179095802,-957.43,0.00016767,2]
[366302330,1750179095813,-615.75,0.00016767,2]
[366302331,1750179095823,-1320.82,0.00016767,2]
[366302332,1750179095834,-490.0,0.00016767,2]
[366302333,1750179095844,-490.0,0.00016767,2]
[366302334,1750179095855,-490.0,0.00016767,2]
[366302335,1750179095865,-1295.9,0.00016767,2]
[366302336,1750179095875,-1438.39,0.00016767,2]
[366302337,1750179095885,-490.0,0.00016767,2]
[366302338,1750179095895,-343.64,0.00016767,2]
[366302339,1750179095905,-1581.93,0.00016767,2]
[366302340,1750179095916,-1408.83,0.00016767,2]
[366302341,1750179095926,-731.66,0.00016767,2]
[366302342,1750179095936,-693.7,0.00016767,2]
[366302343,1750179095946,-490.0,0.00016767,2]
[366302344,1750179095956,-807.72,0.00016767,2]
[366302345,1750179095967,-571.46,0.00016767,2]
[366302346,1750179095979,-490.0,0.00016767,2]
[366302347,1750179095989,-490.0,0.00016767,2]
[366302348,1750179095999,-2139.69,0.00016767,2]
[366302349,1750179096010,-490.0,0.00016767,2]
[366302350,1750179096019,-490.0,0.00016767,2]
[366302351,1750179096029,-490.0,0.00016767,2]
[366302352,1750179096039,-490.0,0.00016767,2]
[366302353,1750179096050,-510.1,0.00016767,2]
[366302354,1750179096060,-490.0,0.00016767,2]
[366302355,1750179096070,-719.96,0.00016767,2]
[366302356,1750179096081,-490.0,0.00016767,2]
[366302357,1750179096092,-1072.37,0.00016767,2]
[366302358,1750179096103,-490.0,0.00016767,2]
[366302359,1750179096113,-473.75600075,0.00016767,2]
[366302360,1750179096124,-713.6,0.00016767,2]
[366302361,1750179096134,-490.0,0.00016767,2]
[366302362,1750179096145,-490.0,0.00016767,2]
[366302363,1750179096155,-490.0,0.00016767,2]
[366302364,1750179096166,-1526.95,0.00016767,2]
[366302365,1750179096176,-490.0,0.00016767,2]
[366302366,1750179096187,-722.84,0.00016767,2]
[366302367,1750179096197,-490.0,0.00016767,2]
[366302368,1750179096207,-490.0,0.00016767,2]
[366302369,1750179096218,-3248.68,0.00016767,2]
[366302370,1750179096230,-1015.68,0.00016767,2]
[366302371,1750179096239,-490.0,0.00016767,2]
[366302372,1750179096255,-490.0,0.00016767,2]
[366302373,1750179096265,-1028.31,0.00016767,2]
[366302374,1750179096277,-490.0,0.00016767,2]
[366302375,1750179096287,-1488.81,0.00016767,2]
[366302376,1750179096298,-490.0,0.00016767,2]
[366302377,1750179096309,-490.0,0.00016767,2]
[366302378,1750179096320,-490.0,0.00016767,2]
[366302379,1750179096330,-490.0,0.00016767,2]
[366302380,1750179096341,-490.0,0.00016767,2]
[366302381,1750179096352,-490.0,0.00016767,2]
[366302382,1750179096363,-490.0,0.00016767,2]
[366302383,1750179096374,-490.0,0.00016767,2]
[366302384,1750179096384,-490.0,0.00016767,2]
[366302385,1750179096395,-1093.69,0.00016767,2]
[366302386,1750179096405,-3557.82,0.00016767,2]
[366302387,1750179096416,-2674.76,0.00016767,2]
[366302388,1750179096426,-490.0,0.00016767,2]
[366302389,1750179096436,-490.0,0.00016767,2]
[366302390,1750179096446,-152.901366,0.00016767,2]
[366302391,1750179096456,-490.0,0.00016767,2]
[366302392,1750179096466,-1892.28,0.00016767,2]
[366302393,1750179096478,-839.17,0.00016767,2]
[366302394,1750179096489,-571.43,0.00016767,2]
[366302395,1750179096503,-688.82,0.00016767,2]
[366302396,1750179096513,-796.61,0.00016767,2]
[366302397,1750179096524,-1263.84,0.00016767,2]
[366302398,1750179096534,-324.78920188,0.00016767,2]
[366302399,1750179096545,-490.0,0.00016767,2]
[366302400,1750179096556,-490.0,0.00016767,2]
[366302401,1750179096566,-152.901374,0.00016767,2]
[366302402,1750179096577,-859.67,0.00016767,2]
[366302403,1750179096588,-490.0,0.00016767,2]
[366302404,1750179096599,-1339.04,0.00016767,2]
[366302405,1750179096609,-490.0,0.00016767,2]
[366302406,1750179096619,-7357.56,0.00016767,2]
[366302407,1750179096629,-490.0,0.00016767,2]
[366302408,1750179096639,-1533.16,0.00016767,2]
[366302409,1750179096650,-157.02,0.00016767,2]
[366302410,1750179096660,-490.0,0.00016767,2]
[366302411,1750179096671,-490.0,0.00016767,2]
[366302412,1750179096682,-490.0,0.00016767,2]
[366302413,1750179096697,-490.0,0.00016767,2]
[366302414,1750179096729,-800.35,0.00016767,2]
[366302415,1750179096740,-497.71,0.00016767,2]
[366302416,1750179096750,-670.22,0.00016767,2]
[366302417,1750179096760,-490.0,0.00016767,2]
[366302418,1750179096771,-1325.05,0.00016767,2]
[366302419,1750179096782,-664.49,0.00016767,2]
[366302420,1750179096792,-490.0,0.00016767,2]
[366302421,1750179096803,-490.0,0.00016767,2]
[366302422,1750179096814,-490.0,0.00016767,2]
[366302423,1750179096824,-490.0,0.00016767,2]
[366302424,1750179096834,-490.0,0.00016767,2]
[366302425,1750179096845,-490.0,0.00016767,2]
[366302426,1750179096856,-490.0,0.00016767,2]
[366302427,1750179096867,-673.06,0.00016767,2]
[366302428,1750179096877,-633.85,0.00016767,2]
[366302429,1750179096887,-9288.49,0.00016767,2]
[366302430,1750179096898,-3036.39,0.00016767,2]
[366302431,1750179096908,-490.0,0.00016767,2]
[366302432,1750179096918,-1080.85,0.00016767,2]
[366302433,1750179096930,-579.34,0.00016767,2]
[366302434,1750179096940,-2620.73,0.00016767,2]
[366302435,1750179096951,-490.0,0.00016767,2]
[366302436,1750179096962,-395.34130157,0.00016767,2]
[366302437,1750179096973,-490.0,0.00016767,2]
[366302438,1750179096982,-490.0,0.00016767,2]
[366302439,1750179096992,-1437.97,0.00016767,2]
[366302440,1750179097003,-1284.25,0.00016767,2]
[366302441,1750179097013,-490.0,0.00016767,2]
[366302442,1750179097023,-490.0,0.00016767,2]
[366302443,1750179097034,-688.59,0.00016767,2]
[366302444,1750179097044,-490.0,0.00016767,2]
[366302445,1750179097055,-490.0,0.00016767,2]
[366302446,1750179097066,-490.0,0.00016767,2]